bitfinex/quotes_BTCUSD_20240731
["timestamp","ask_amount","ask_price","bid_price","bid_amount"]
[1722441756575,0.00096584,66488.0,66485.0,0.1382]
[1722441756951,0.300797,66490.0,66485.0,0.1382]
[1722441756952,0.1504,66490.0,66485.0,0.1382]
[1722441757118,0.1504,66490.0,66485.0,0.288609]
[1722441757326,0.15199546,66486.0,66485.0,0.1382]
[1722441757501,0.17400612,66488.0,66485.0,0.1382]
[1722441758045,0.02360212,66488.0,66486.0,0.300815]
[1722441758257,0.02360212,66488.0,66487.0,0.595315]
[1722441758437,0.15204801,66490.0,66487.0,0.60162]
[1722441758583,0.15204801,66491.0,66490.0,0.751992]
[1722441758793,0.10083,66495.0,66491.0,0.0783]
[1722441758994,0.25290333,66495.0,66494.0,0.589768]
[1722441759194,0.25290333,66495.0,66494.0,0.890547]
[1722441759195,0.10083,66495.0,66494.0,0.890547]
[1722441759422,0.10083,66495.0,66494.0,0.589768]
[1722441760326,0.380429,66505.0,66494.0,0.589768]
[1722441760327,0.13521904,66509.0,66508.0,0.291857]
[1722441760461,0.13521904,66517.0,66511.0,0.893255]
[1722441760659,0.11346421,66512.0,66511.0,1.2043294]
[1722441760836,0.00083,66512.0,66511.0,1.2043294]
[1722441761526,0.02442163,66512.0,66511.0,1.7434314]
[1722441761642,0.02442163,66512.0,66511.0,1.90298312]
[1722441761848,0.02442163,66512.0,66511.0,1.92498312]
[1722441762303,0.02442163,66512.0,66511.0,2.32568512]
[1722441762304,0.00083,66512.0,66511.0,2.32568512]
[1722441762626,0.00083,66512.0,66511.0,2.02498312]
[1722441763271,0.04579876,66525.0,66524.0,1.19665]
[1722441763474,0.00083,66525.0,66524.0,1.19665]
[1722441763681,0.00083,66525.0,66524.0,1.20691777]
[1722441764836,0.00083,66525.0,66524.0,1.20791777]
[1722441765043,0.00083,66525.0,66524.0,1.50856077]
[1722441765248,0.00083,66525.0,66524.0,1.54156077]
[1722441765453,0.00083,66525.0,66524.0,1.53156077]
[1722441765653,0.02441611,66525.0,66524.0,1.54356077]
[1722441765851,0.00083,66525.0,66524.0,1.54356077]
[1722441766476,0.00083,66525.0,66524.0,1.69311249]
[1722441767711,0.00083,66525.0,66524.0,1.70211249]
[1722441767901,0.00083,66525.0,66524.0,1.70411249]
[1722441768478,0.00183,66525.0,66524.0,1.71211249]
[1722441768678,0.02541543,66525.0,66524.0,1.71211249]
[1722441768891,0.02441543,66525.0,66524.0,1.70411249]
[1722441769300,0.02541543,66525.0,66524.0,1.71811249]
[1722441770384,0.02541543,66525.0,66524.0,1.70611249]
[1722441770789,0.02541543,66525.0,66524.0,1.71811249]
[1722441771010,0.02541543,66525.0,66524.0,1.71611249]
[1722441771225,0.02541543,66525.0,66524.0,1.73811249]
[1722441771432,0.02541543,66525.0,66524.0,1.71811249]
[1722441771651,0.02541543,66525.0,66524.0,1.70611249]
[1722441772217,0.02541543,66525.0,66524.0,1.71611249]
[1722441772632,0.00183,66525.0,66524.0,1.71611249]
[1722441772865,0.045,66542.0,66541.0,0.751415]
[1722441772990,0.045,66542.0,66541.0,0.530349]
[1722441773194,0.045,66542.0,66541.0,0.450849]
[1722441773398,0.045,66542.0,66541.0,0.46090135]
[1722441773801,0.045,66542.0,66541.0,0.01005235]
[1722441774162,0.045,66542.0,66541.0,0.150283]
[1722441774367,0.045,66542.0,66539.0,0.45086]
[1722441774563,0.045,66542.0,66541.0,0.01004891]
[1722441774771,0.048,66542.0,66540.0,0.01005159]
[1722441774978,0.198281,66542.0,66541.0,0.01004891]
[1722441775179,0.642943,66542.0,66541.0,0.01004891]
[1722441775392,0.300566,66541.0,66530.0,0.300614]
[1722441775599,0.1441,66537.0,66521.0,0.300654]
[1722441775807,0.1441,66537.0,66531.0,0.01007148]
[1722441775808,0.45091,66532.0,66531.0,0.01007148]
[1722441776010,0.450916,66531.0,66530.0,0.01007417]
[1722441776241,0.150311,66529.0,66523.0,0.150323]
[1722441776444,0.150319,66525.0,66519.0,0.150332]
[1722441776651,0.0015542,66524.0,66520.0,0.00300626]
[1722441776859,0.0015542,66524.0,66523.0,0.150323]
[1722441777064,0.0015542,66528.0,66524.0,0.150321]
[1722441777265,0.0015542,66528.0,66525.0,0.01008967]
[1722441777461,0.0015542,66528.0,66523.0,0.150323]
[1722441777462,0.0015542,66528.0,66524.0,0.15032]
[1722441777672,0.0015542,66528.0,66523.0,0.45097]
[1722441777673,0.02358793,66524.0,66523.0,0.45097]
[1722441778030,0.0015542,66528.0,66523.0,0.150323]
[1722441778548,0.0015542,66528.0,66524.0,0.15032]
[1722441778879,0.0015542,66528.0,66525.0,0.150319]
[1722441779119,0.0015542,66528.0,66527.0,0.150314]
[1722441779320,0.001,66528.0,66527.0,0.300629]
[1722441779524,0.001,66528.0,66527.0,0.450943]
[1722441779729,0.2180552,66533.0,66527.0,0.300629]
[1722441779933,0.2180552,66533.0,66528.0,0.150311]
[1722441780368,0.2180552,66533.0,66525.0,0.0826]
[1722441780369,0.0015542,66533.0,66525.0,0.0826]
[1722441780553,0.0635,66537.0,66533.0,0.150301]
[1722441780554,0.0015542,66534.0,66533.0,0.150301]
[1722441780960,0.0015542,66536.0,66533.0,0.3006]
[1722441781173,0.0015542,66536.0,66534.0,0.150297]
[1722441781382,0.0015542,66536.0,66535.0,0.892682]
[1722441781583,0.0015542,66541.0,66540.0,0.450856]
[1722441782194,0.0015542,66541.0,66540.0,0.751427]
[1722441782396,0.0624,66551.0,66541.0,0.751415]
[1722441782598,0.0015542,66550.0,66539.0,0.150286]
[1722441782855,0.0015542,66541.0,66540.0,0.150284]
[1722441783059,0.0025542,66541.0,66540.0,0.150284]
[1722441783261,0.0025542,66541.0,66540.0,0.450855]
[1722441783262,0.001,66541.0,66540.0,0.450855]
[1722441783640,0.001,66541.0,66540.0,0.751426]
[1722441785037,0.07626412,66553.0,66540.0,0.751426]
[1722441785038,0.22652012,66553.0,66541.0,0.751415]
[1722441785449,0.00934652,66552.0,66541.0,0.751415]
[1722441785668,0.15960452,66552.0,66541.0,0.751415]
[1722441786074,0.15026,66551.0,66541.0,0.751415]
[1722441786271,0.150263,66550.0,66541.0,0.751415]
[1722441786481,0.15026,66551.0,66541.0,0.751415]
[1722441786855,0.151104,66545.0,66540.0,0.150283]
[1722441787046,0.0762,66540.0,66530.0,0.0824]
[1722441787232,0.0762,66540.0,66527.0,0.0608]
[1722441787445,0.0015542,66539.0,66527.0,0.0608]
[1722441787653,0.0015542,66539.0,66538.0,0.15029]
[1722441788006,0.0015542,66541.0,66540.0,0.751427]
[1722441788414,0.00083,66545.0,66541.0,0.450849]
[1722441788635,0.00083,66545.0,66541.0,1.051981]
[1722441788838,0.00083,66545.0,66541.0,0.751415]
[1722441789213,0.06858324,66542.0,66541.0,0.751415]
[1722441790318,0.06858324,66542.0,66541.0,0.76146678]
[1722441790982,0.07058324,66542.0,66541.0,0.76146678]
[1722441791183,0.07058324,66542.0,66541.0,0.46090078]
[1722441791527,0.06858324,66542.0,66541.0,0.46090078]
[1722441791759,0.06858324,66542.0,66541.0,0.76146678]
[1722441791974,0.06858324,66542.0,66541.0,0.76546678]
[1722441792188,0.06858324,66542.0,66541.0,0.46490078]
[1722441792614,0.06858324,66542.0,66541.0,0.76546678]
[1722441792827,0.07158324,66542.0,66541.0,0.46490078]
[1722441793245,0.07158324,66542.0,66541.0,0.01405178]
[1722441793473,0.06858324,66542.0,66541.0,0.46490078]
[1722441793883,0.07058324,66542.0,66541.0,0.76546678]
[1722441794333,0.07058324,66542.0,66541.0,0.76146678]
[1722441795179,0.07058324,66542.0,66541.0,0.76346678]
[1722441795601,0.07058324,66542.0,66541.0,0.76146678]
[1722441795712,0.06858324,66542.0,66541.0,0.76146678]
[1722441796114,0.06858324,66542.0,66541.0,0.46090078]
[1722441796565,0.06858324,66542.0,66541.0,0.16033478]
[1722441796770,0.06858324,66542.0,66541.0,0.01005178]
[1722441797145,0.06858324,66542.0,66537.0,0.300581]
[1722441797348,0.0015542,66541.0,66538.0,0.150289]
[1722441797550,0.0015542,66541.0,66537.0,0.300581]
[1722441797833,0.0015542,66541.0,66540.0,0.150285]
[1722441798271,0.0015542,66541.0,66539.0,0.150287]
[1722441798919,0.0015542,66541.0,66540.0,0.150285]
[1722441799498,0.07058324,66542.0,66536.0,0.300585]
[1722441799499,0.07058324,66542.0,66539.0,0.150287]
[1722441799905,0.06858324,66542.0,66539.0,0.150287]
[1722441800133,0.0045542,66541.0,66539.0,0.150287]
[1722441800330,0.0045542,66541.0,66540.0,0.150285]
[1722441800331,0.003,66541.0,66540.0,0.150285]
[1722441800567,0.003,66541.0,66540.0,0.450856]
[1722441800778,0.06858324,66542.0,66541.0,0.450849]
[1722441800977,0.06858324,66542.0,66541.0,0.751415]
[1722441801692,0.06858324,66542.0,66541.0,0.450849]
[1722441802338,0.07158324,66542.0,66541.0,0.450849]
[1722441802490,0.07158324,66542.0,66541.0,0.452849]
[1722441802689,0.07158324,66542.0,66541.0,0.152283]
[1722441802893,0.06858324,66542.0,66541.0,0.152283]
[1722441803337,0.07058324,66542.0,66541.0,0.152283]
[1722441804081,0.06858324,66542.0,66541.0,0.450849]
[1722441804503,0.06858324,66542.0,66541.0,0.751415]
[1722441805036,0.06958324,66542.0,66541.0,0.450849]
[1722441805241,0.06958324,66542.0,66541.0,0.46088045]
[1722441805476,0.06958324,66542.0,66541.0,0.76144645]
[1722441806333,0.14013229,66542.0,66541.0,0.76144645]
[1722441806537,0.14016855,66542.0,66541.0,0.76144645]
[1722441806711,0.13716855,66542.0,66541.0,0.76144645]
[1722441807117,0.13916855,66542.0,66541.0,0.76144645]
[1722441807532,0.15957061,66542.0,66541.0,0.76144645]
[1722441807735,0.13598737,66542.0,66541.0,0.76144645]
[1722441807938,0.13514678,66542.0,66541.0,0.76144645]
[1722441808370,0.13514678,66542.0,66541.0,0.76344645]
[1722441808578,0.15768348,66542.0,66541.0,0.76344645]
[1722441808782,0.15768348,66542.0,66541.0,0.76144645]
[1722441808979,0.045,66542.0,66541.0,0.76144645]
[1722441809207,0.045,66542.0,66541.0,0.76544645]
[1722441811755,0.045,66542.0,66541.0,1.06601245]
[1722441811957,0.15766888,66542.0,66541.0,1.20891245]
[1722441812436,0.045,66542.0,66541.0,1.20891245]
[1722441812641,0.06858295,66542.0,66541.0,1.20891245]
[1722441812811,0.045,66542.0,66541.0,1.20891245]
[1722441815679,0.06858247,66542.0,66541.0,1.20891245]
[1722441815847,0.045,66542.0,66541.0,1.20891245]
[1722441817095,0.18016319,66542.0,66541.0,1.20891245]
[1722441817494,0.045,66542.0,66541.0,1.20891245]
[1722441818896,0.06858251,66542.0,66541.0,1.20891245]
[1722441819099,0.045,66542.0,66541.0,1.06601245]
[1722441819347,0.108,66542.0,66541.0,0.76544645]
[1722441819745,0.1095542,66542.0,66541.0,0.76544645]
[1722441820583,0.0645542,66542.0,66541.0,0.76544645]
[1722441821003,0.063,66542.0,66541.0,0.76544645]
[1722441821204,0.0645542,66542.0,66541.0,0.76544645]
[1722441821532,0.0023842,66542.0,66541.0,0.76544645]
[1722441821851,0.02596726,66542.0,66541.0,1.06601245]
[1722441822058,0.15956318,66542.0,66541.0,1.12621245]
[1722441822254,0.02441306,66542.0,66541.0,1.12621245]
[1722441822500,0.00083,66542.0,66541.0,1.12621245]
[1722441825846,0.02441221,66542.0,66541.0,1.12621245]
[1722441829638,0.15964806,66542.0,66541.0,1.12621245]
[1722441830047,0.02441221,66542.0,66541.0,1.12621245]
[1722441830476,0.02441221,66542.0,66541.0,1.42677845]
[1722441830679,0.00083,66542.0,66541.0,1.57633017]
[1722441830930,0.00083,66542.0,66541.0,1.68073017]
[1722441832084,0.00083,66542.0,66541.0,1.69273017]
[1722441832470,0.11349981,66542.0,66541.0,1.69273017]
[1722441832668,0.11349981,66542.0,66541.0,1.69073017]
[1722441832894,0.00083,66542.0,66541.0,1.69273017]
[1722441833601,0.0909561,66542.0,66541.0,1.68073017]
[1722441833808,0.11453727,66542.0,66541.0,1.68073017]
[1722441834008,0.02441117,66542.0,66541.0,1.68073017]
[1722441834982,0.00083,66542.0,66541.0,1.69073017]
[1722441835180,0.11347509,66542.0,66541.0,1.69073017]
[1722441835584,0.00083,66542.0,66541.0,1.69073017]
[1722441836800,0.06840385,66542.0,66541.0,1.79073017]
[1722441837000,0.09198427,66542.0,66541.0,2.09129617]
[1722441837294,0.09198418,66542.0,66541.0,2.09329617]
[1722441837954,0.06840376,66542.0,66541.0,2.09329617]
[1722441838206,0.06840376,66542.0,66541.0,2.10729617]
[1722441838607,0.00083,66542.0,66541.0,2.10729617]
[1722441838804,0.00083,66542.0,66541.0,2.08929617]
[1722441839215,0.00083,66542.0,66541.0,2.10329617]
[1722441839410,0.00083,66542.0,66541.0,2.08929617]
[1722441839672,0.00083,66542.0,66541.0,2.10329617]
[1722441839882,0.00083,66542.0,66541.0,1.80473017]
[1722441840082,0.06840376,66542.0,66541.0,1.80473017]
[1722441840203,0.06840376,66542.0,66541.0,1.59497845]
[1722441840204,0.00083,66542.0,66541.0,1.59497845]
[1722441840405,0.06838244,66542.0,66541.0,1.59497845]
[1722441840850,0.06837753,66542.0,66541.0,1.59497845]
[1722441841055,0.09195786,66542.0,66541.0,1.59497845]
[1722441842207,0.06837753,66542.0,66541.0,1.59497845]
[1722441842414,0.06837753,66542.0,66541.0,1.60497845]
[1722441842639,0.06837753,66542.0,66541.0,1.75453017]
[1722441842842,0.11340589,66542.0,66541.0,1.81523017]
[1722441843086,0.04585836,66542.0,66541.0,1.81723017]
[1722441843308,0.00083,66542.0,66541.0,1.81723017]
[1722441843484,0.04586738,66542.0,66541.0,1.81723017]
[1722441843624,0.04586738,66542.0,66541.0,2.11779617]
[1722441843827,0.04586738,66542.0,66541.0,1.81723017]
[1722441844234,0.04586738,66542.0,66541.0,1.82723017]
[1722441844465,0.00083,66542.0,66541.0,1.96214807]
[1722441845265,0.02440935,66542.0,66541.0,1.96214807]
[1722441845483,0.02440935,66542.0,66541.0,2.26271407]
[1722441846525,0.02440935,66542.0,66541.0,2.24870129]
[1722441846733,0.00083,66542.0,66541.0,2.24870129]
[1722441846934,0.00083,66542.0,66541.0,2.26270129]
[1722441847158,0.00083,66542.0,66541.0,2.23470129]
[1722441847566,0.00083,66542.0,66541.0,2.24870129]
[1722441848170,0.00083,66542.0,66541.0,2.26270129]
[1722441848394,0.00083,66542.0,66541.0,1.94013529]
[1722441848592,0.00083,66542.0,66541.0,1.62613017]
[1722441848593,0.02440846,66542.0,66541.0,1.62613017]
[1722441848947,0.02440846,66542.0,66541.0,1.64013017]
[1722441849360,0.09300136,66542.0,66541.0,1.19001245]
[1722441849567,0.02440846,66542.0,66541.0,1.09001245]
[1722441849782,0.13697112,66542.0,66541.0,0.78944645]
[1722441849987,0.15948365,66542.0,66541.0,0.78944645]
[1722441850194,0.02440846,66542.0,66541.0,0.78944645]
[1722441850398,0.02440846,66542.0,66541.0,0.77544645]
[1722441850654,0.02440846,66542.0,66541.0,0.47488045]
[1722441850808,0.02440846,66542.0,66541.0,0.47088045]
[1722441851036,0.00083,66542.0,66541.0,0.77144645]
[1722441851237,0.14623,66542.0,66541.0,0.47088045]
[1722441852447,0.14623,66542.0,66541.0,0.78544645]
[1722441853574,0.19959609,66542.0,66541.0,0.78544645]
[1722441853778,0.00083,66542.0,66541.0,0.78544645]
[1722441853979,0.00083,66542.0,66541.0,1.08601245]
[1722441854206,0.02441203,66542.0,66541.0,1.08601245]
[1722441854427,0.13697675,66542.0,66541.0,1.10901245]
[1722441854628,0.11446936,66542.0,66541.0,1.40957845]
[1722441854859,0.02441203,66542.0,66541.0,1.78653017]
[1722441855060,0.06944414,66542.0,66541.0,1.78653017]
[1722441855259,0.02441203,66542.0,66541.0,1.78653017]
[1722441855673,0.02441203,66542.0,66541.0,1.77453017]
[1722441855874,0.06944485,66542.0,66541.0,1.77453017]
[1722441856284,0.06944485,66542.0,66541.0,1.55913017]
[1722441856481,0.13699409,66542.0,66541.0,1.10901245]
[1722441856681,0.02441203,66542.0,66541.0,1.10901245]
[1722441857221,0.11447742,66542.0,66541.0,1.10901245]
[1722441857499,0.02441203,66542.0,66541.0,1.10901245]
[1722441857697,0.11447556,66542.0,66541.0,1.10901245]
[1722441858347,0.02441203,66542.0,66541.0,1.10901245]
[1722441858537,0.00083,66542.0,66541.0,1.10901245]
[1722441860834,0.09087107,66542.0,66541.0,1.18681245]
[1722441860991,0.09087107,66542.0,66541.0,1.70033017]
[1722441861240,0.00083,66542.0,66541.0,1.70033017]
[1722441861436,0.02441004,66542.0,66541.0,1.70033017]
[1722441861642,0.02441004,66542.0,66541.0,1.71033017]
[1722441862101,0.02441004,66542.0,66541.0,1.71233017]
[1722441862463,0.02441004,66542.0,66541.0,2.25781268]
[1722441862915,0.00083,66542.0,66541.0,2.25781268]
[1722441863489,0.00083,66542.0,66541.0,2.24781268]
[1722441864082,0.00083,66542.0,66541.0,2.26181268]
[1722441864283,0.00083,66542.0,66541.0,2.24781268]
[1722441864484,0.00083,66542.0,66541.0,2.26181268]
[1722441865557,0.00083,66542.0,66541.0,2.26180519]
[1722441865989,0.02440729,66542.0,66541.0,2.26180519]
[1722441866609,0.00083,66545.0,66544.0,1.685041]
[1722441866807,0.00083,66545.0,66544.0,1.95759272]
[1722441867033,0.00083,66545.0,66544.0,2.0480508]
[1722441867390,0.00083,66545.0,66544.0,2.23455899]
[1722441868001,0.00083,66545.0,66544.0,2.26255899]
[1722441868209,0.00045094,66552.0,66551.0,1.664865]
[1722441868385,0.00045094,66552.0,66551.0,2.29131672]
[1722441868608,0.00045094,66552.0,66551.0,2.30121761]
[1722441868808,0.00045094,66552.0,66551.0,1.92739661]
[1722441868989,0.00045094,66552.0,66551.0,1.85019661]
[1722441869602,0.06275094,66552.0,66551.0,1.49724489]
[1722441870020,0.13024648,66552.0,66551.0,1.48524489]
[1722441870419,0.13024648,66552.0,66551.0,1.49924489]
[1722441870420,0.06794648,66552.0,66551.0,1.49924489]
[1722441870643,0.06794648,66552.0,66551.0,1.51324489]
[1722441870844,0.06794648,66552.0,66551.0,1.48524489]
[1722441871270,0.06794648,66552.0,66551.0,1.51124489]
[1722441871510,0.06794648,66552.0,66551.0,1.49724489]
[1722441871627,0.06794648,66552.0,66551.0,1.50638826]
[1722441871841,0.06794236,66552.0,66551.0,1.52038826]
[1722441872294,0.06794236,66552.0,66551.0,1.50638826]
[1722441872451,0.06794236,66552.0,66551.0,1.49438826]
[1722441872856,0.06794236,66552.0,66551.0,1.50538826]
[1722441873200,0.11293592,66552.0,66551.0,1.20486726]
[1722441873424,0.00045094,66552.0,66551.0,1.20486726]
[1722441873645,0.00045094,66552.0,66551.0,1.19386726]
[1722441873835,0.00045094,66552.0,66551.0,1.20786726]
[1722441874040,0.00045094,66552.0,66551.0,1.20586726]
[1722441874185,0.06794912,66552.0,66551.0,1.50638826]
[1722441874384,0.06794912,66552.0,66551.0,1.52038826]
[1722441874626,0.00045094,66552.0,66551.0,1.52038826]
[1722441874802,0.00045094,66552.0,66551.0,1.50838826]
[1722441875002,0.00045094,66552.0,66551.0,1.65793998]
[1722441875211,0.06794912,66552.0,66551.0,1.65793998]
[1722441875405,0.04545247,66552.0,66551.0,1.65793998]
[1722441875588,0.00045094,66552.0,66551.0,1.65793998]
[1722441875980,0.06794912,66552.0,66551.0,1.65793998]
[1722441876427,0.06794912,66552.0,66551.0,1.66893998]
[1722441876605,0.00045094,66552.0,66551.0,1.66893998]
[1722441876817,0.00192403,66552.0,66551.0,1.35441898]
[1722441878123,0.15192619,66552.0,66551.0,0.47468189]
[1722441878329,0.13922403,66552.0,66551.0,0.48868189]
[1722441878543,0.34898063,66552.0,66551.0,0.03790089]
[1722441878752,0.21251506,66552.0,66551.0,0.03790089]
[1722441878958,0.36277306,66552.0,66551.0,0.03790089]
[1722441879166,0.36432726,66552.0,66551.0,0.03790089]
[1722441879373,0.13775094,66552.0,66551.0,0.16426]
[1722441879581,0.28958057,66552.0,66551.0,0.18517818]
[1722441879804,0.28957449,66552.0,66551.0,0.48569918]
[1722441880020,0.13775094,66552.0,66551.0,0.17117818]
[1722441880225,0.13775094,66552.0,66551.0,0.46069918]
[1722441880434,0.13775094,66552.0,66551.0,0.76722018]
[1722441880643,0.13775094,66552.0,66551.0,1.06874118]
[1722441880644,0.27267841,66552.0,66551.0,1.06874118]
[1722441880846,0.27267841,66552.0,66551.0,0.76822018]
[1722441881048,0.13775094,66552.0,66551.0,0.76722018]
[1722441881327,0.13775094,66552.0,66551.0,0.46669918]
[1722441881531,0.13775094,66552.0,66551.0,0.16617818]
[1722441881732,0.13912525,66552.0,66551.0,0.16617818]
[1722441882066,0.13775094,66552.0,66551.0,0.16617818]
[1722441882268,0.28953438,66552.0,66551.0,0.16617818]
[1722441882996,0.28953438,66552.0,66551.0,0.46869918]
[1722441883215,0.13775094,66552.0,66551.0,0.46269918]
[1722441883414,0.13775094,66552.0,66551.0,0.46069918]
[1722441883616,0.13875094,66552.0,66551.0,0.46069918]
[1722441883846,0.16233064,66552.0,66551.0,0.46069918]
[1722441884451,0.16233064,66552.0,66551.0,0.16017818]
[1722441884652,0.16233064,66552.0,66551.0,0.46069918]
[1722441884885,0.16233064,66552.0,66551.0,0.00991818]
[1722441885085,0.14000955,66552.0,66551.0,0.00991818]
[1722441885246,0.2905032,66552.0,66551.0,0.16017818]
[1722441885440,0.2905032,66552.0,66551.0,0.15026]
[1722441885646,0.2905032,66552.0,66551.0,0.16017818]
[1722441886277,0.2905032,66552.0,66551.0,0.00991818]
[1722441886473,0.44219706,66552.0,66551.0,0.00991818]
[1722441886678,0.21286,66551.0,66547.0,0.150268]
[1722441886878,0.2305032,66552.0,66545.0,0.000913]
[1722441886879,0.9044942,66552.0,66551.0,0.00991818]
[1722441887079,0.300532,66549.0,66545.0,0.000913]
[1722441887280,0.892329,66549.0,66548.0,0.00992623]
[1722441887456,0.150271,66546.0,66545.0,0.000913]
[1722441887634,0.74505752,66546.0,66545.0,0.000913]
[1722441887835,0.44296032,66546.0,66545.0,0.000913]
[1722441888271,0.44296032,66546.0,66545.0,0.01084727]
[1722441888473,0.31485254,66546.0,66545.0,0.000913]
[1722441888729,0.141,66546.0,66545.0,0.000913]
[1722441888898,0.14248353,66546.0,66545.0,0.000913]
[1722441889104,0.141,66546.0,66545.0,0.000913]
[1722441889278,0.14198407,66546.0,66545.0,0.000913]
[1722441889477,0.141,66546.0,66545.0,0.16115836]
[1722441889887,0.141,66546.0,66545.0,0.46970636]
[1722441890279,0.15035306,66546.0,66545.0,0.46970636]
[1722441890484,0.141,66546.0,66545.0,0.46970636]
[1722441890689,0.15035305,66546.0,66545.0,0.01688436]
[1722441890886,0.141,66546.0,66545.0,0.01688436]
[1722441891092,0.15135299,66546.0,66545.0,0.16715836]
[1722441891295,0.142,66546.0,66545.0,0.16115836]
[1722441891500,0.15135296,66546.0,66545.0,0.16115836]
[1722441891701,0.15135296,66546.0,66545.0,0.01288436]
[1722441892115,0.17493402,66546.0,66545.0,0.01288436]
[1722441892336,0.17493402,66546.0,66545.0,0.16315836]
[1722441892555,0.17393402,66546.0,66545.0,0.16315836]
[1722441892760,0.15035296,66546.0,66545.0,0.16315836]
[1722441892954,0.15035296,66546.0,66545.0,0.16115836]
[1722441893371,0.15135296,66546.0,66545.0,0.01088436]
[1722441893740,0.30162396,66546.0,66545.0,0.01088436]
[1722441894272,0.3016237,66546.0,66545.0,0.01088436]
[1722441894850,0.1513527,66546.0,66545.0,0.01088436]
[1722441895059,0.3016237,66546.0,66545.0,0.01088436]
[1722441895266,0.1513527,66546.0,66545.0,0.01088436]
[1722441896274,0.17493458,66546.0,66545.0,0.01088436]
[1722441896465,0.1513527,66546.0,66545.0,0.01088436]
[1722441897329,0.1513527,66546.0,66545.0,0.46170636]
[1722441897533,0.001,66546.0,66545.0,0.76225436]
[1722441897878,0.001,66546.0,66545.0,1.06280236]
[1722441898494,0.1348,66549.0,66548.0,0.751335]
[1722441898691,0.1348,66549.0,66548.0,0.76204525]
[1722441899478,0.15838034,66549.0,66548.0,0.76204525]
[1722441900084,0.15838034,66549.0,66548.0,0.46151125]
[1722441900265,0.15838034,66549.0,66548.0,0.16097725]
[1722441900620,0.63571313,66549.0,66548.0,0.01071025]
[1722441900820,0.63571313,66549.0,66545.0,0.000913]
[1722441900821,0.150271,66546.0,66545.0,0.000913]
[1722441901023,0.68038812,66546.0,66545.0,0.000913]
[1722441901219,1.13106532,66546.0,66545.0,0.000913]
[1722441901428,0.97937692,66546.0,66545.0,0.000913]
[1722441901632,0.9046128,66546.0,66545.0,0.000913]
[1722441902241,0.9056128,66546.0,66545.0,0.000913]
[1722441902795,1.02622718,66546.0,66545.0,0.000913]
[1722441903230,0.72568418,66546.0,66545.0,0.000913]
[1722441903432,0.6050698,66546.0,66545.0,0.000913]
[1722441903813,0.60506928,66546.0,66545.0,0.000913]
[1722441904009,0.78027416,66546.0,66545.0,0.000913]
[1722441904210,0.78027416,66546.0,66545.0,0.01162848]
[1722441904484,1.05723371,66546.0,66545.0,0.01162848]
[1722441904688,1.05723371,66546.0,66545.0,0.000913]
[1722441904828,0.45614771,66546.0,66545.0,0.000913]
[1722441905266,0.01035528,66546.0,66545.0,0.76300649]
[1722441905638,0.001,66546.0,66545.0,1.06357792]
[1722441905843,0.2031462,66546.0,66545.0,1.06357792]
[1722441906049,0.001,66546.0,66545.0,1.06357792]
[1722441906221,0.0908372,66546.0,66545.0,1.06357792]
[1722441906464,0.001,66546.0,66545.0,1.16056854]
[1722441906663,0.0908372,66546.0,66545.0,1.16056854]
[1722441907068,0.09082732,66546.0,66545.0,1.16056854]
[1722441907272,0.06836965,66546.0,66545.0,1.22696854]
[1722441907476,0.001,66546.0,66545.0,1.22696854]
[1722441907898,0.06737086,66546.0,66545.0,1.22696854]
[1722441908098,0.06737086,66547.0,66546.0,1.0519]
[1722441908350,0.11228416,66548.0,66547.0,0.450808]
[1722441908553,0.27844099,66551.0,66546.0,0.01074424]
[1722441908752,0.53734186,66547.0,66546.0,0.01074424]
[1722441908879,0.53734186,66547.0,66545.0,0.016913]
[1722441908880,0.232571,66546.0,66545.0,0.016913]
[1722441909081,0.84300942,66546.0,66545.0,0.011913]
[1722441909286,0.69405003,66546.0,66545.0,0.007913]
[1722441909486,1.07997241,66546.0,66545.0,0.007913]
[1722441909806,0.39350703,66546.0,66545.0,0.000913]
[1722441911034,0.39341556,66546.0,66545.0,0.01163018]
[1722441911263,0.39441556,66546.0,66545.0,0.01163018]
[1722441911881,0.69495856,66546.0,66545.0,0.01163018]
[1722441912259,0.68561049,66546.0,66545.0,0.000913]
[1722441912866,0.15249649,66546.0,66545.0,0.151187]
[1722441913112,0.001,66546.0,66545.0,0.151187]
[1722441913234,0.001,66546.0,66545.0,0.01163018]
[1722441913648,0.65848509,66546.0,66545.0,0.01163018]
[1722441913845,1.02372809,66546.0,66545.0,0.01163018]
[1722441914061,1.33427109,66546.0,66545.0,0.000913]
[1722441914260,1.63481409,66546.0,66545.0,0.000913]
[1722441914472,1.65481409,66546.0,66545.0,0.000913]
[1722441914672,1.77480492,66546.0,66545.0,0.000913]
[1722441915200,2.08370012,66546.0,66545.0,0.000913]
[1722441915402,2.32756484,66546.0,66545.0,0.001913]
[1722441915615,2.32756484,66546.0,66525.0,0.000913]
[1722441915616,0.898085,66526.0,66525.0,0.000913]
[1722441915811,0.92742803,66526.0,66525.0,0.000913]
[1722441915932,1.22806203,66526.0,66525.0,0.000913]
[1722441916141,1.23806203,66526.0,66525.0,0.000913]
[1722441916346,1.63869603,66526.0,66525.0,0.000913]
[1722441916549,1.80604295,66526.0,66525.0,0.000913]
[1722441916750,1.79669075,66526.0,66525.0,0.000913]
[1722441917549,1.81669075,66526.0,66525.0,0.000913]
[1722441917964,0.150367,66504.0,66500.0,0.44858472]
[1722441918170,0.1408,66512.0,66500.0,0.44858472]
[1722441918397,0.17377897,66511.0,66504.0,0.150365]
[1722441918726,0.00934797,66510.0,66507.0,0.150359]
[1722441918953,0.00934797,66509.0,66507.0,0.150359]
[1722441919165,0.150346,66513.0,66508.0,0.01085595]
[1722441919338,0.15970122,66512.0,66508.0,0.01085595]
[1722441919552,0.0622,66514.0,66506.0,0.300722]
[1722441919553,0.00935222,66511.0,66506.0,0.300722]
[1722441919758,0.0646,66523.0,66510.0,0.300706]
[1722441919952,0.00935298,66522.0,66509.0,0.0757]
[1722441920289,0.150326,66522.0,66516.0,0.150339]
[1722441920486,0.0646,66523.0,66512.0,0.300697]
[1722441920487,0.007,66513.0,66512.0,0.300697]
[1722441920698,0.007,66513.0,66512.0,0.751742]
[1722441920901,0.00091299,66525.0,66521.0,0.150326]
[1722441921102,0.15122699,66527.0,66520.0,0.30066]
[1722441921322,0.0622,66528.0,66513.0,0.300692]
[1722441921323,0.00091299,66525.0,66513.0,0.300692]
[1722441921562,0.00091299,66525.0,66517.0,0.150337]
[1722441921563,0.04480153,66519.0,66517.0,0.150337]
[1722441921991,0.04471423,66519.0,66517.0,0.150337]
[1722441922120,0.04471423,66519.0,66518.0,0.150335]